Cogmind - Beta 16.1 @@@ ROGUE MODE // 2026.02.13 @ 14:38:56 Player: C0-2MO Result: Destroyed by S-27 Virus with Autogun Performance ------------- Evolutions (4) 2000 Regions Visited (14) 2800 Robots Destroyed (119) 595 Value Destroyed (2537) 2537 Prototype IDs (29) 580 Alien Tech Used (0) 0 Bonus (1990) 1990 TOTAL SCORE: 10502 Bonus ------- High Alert Combat Kills 337 Follower Combat Kills 955 Registered with UFD 300 Met Optimus in HQ 500 Met Imprinter 300 Friendly Fire -402 Cogmind --------- Core Integrity 0/850 Matter 290/300 Energy 92/100 System Corruption 1% Temperature Cool (52) Movement Walking (110) Location -5/Proximity Caves Parts ------- > --- POWER (1) -------- Zionite Light DM Reactor > --- PROPULSION (6) --- Zionite Composite Leg I Zionite Composite Leg I Zionite Glidesys I VTOL Module > --- UTILITY (6) ------ Medium Storage Unit Advanced Sensor Array Improved Signal Interpreter Zionite Light Carapace Zionite Light Carapace Improved Hacking Suite > --- WEAPON (2) ------- Zionite Laser-S Zionite Laser-S > --- INVENTORY (10) --- Experimental Heat Sink Zionite Biocell (600) Stasis Canceller Makeshift Cloaking Device Experimental Propulsion Shielding Improved Hacking Suite Advanced Hacking Suite Improved Trap Extractor (4/6 Blade) Improved Trap Extractor (4/6 Fire) Improved Datajack Peak State ------------ > --- POWER ------------ Zionite Light DM Reactor > --- PROPULSION ------- Zionite Composite Leg I Zionite Composite Leg I Zionite Glidesys I VTOL Module > --- UTILITY ---------- Medium Storage Unit Advanced Sensor Array Improved Signal Interpreter Zionite Light Carapace Zionite Light Carapace Improved Hacking Suite > --- WEAPON ----------- Zionite Laser-S Zionite Laser-S > --- INVENTORY -------- Experimental Heat Sink Zionite Biocell Stasis Canceller Makeshift Cloaking Device Experimental Propulsion Shielding Improved Hacking Suite Advanced Hacking Suite Improved Trap Extractor Improved Trap Extractor Improved Datajack [Rating: 71] Favorites ----------- Power Light Ion Engine Engine Light Ion Engine Power Core Backup Power VII Reactor Zionite Light DM Reactor Propulsion Improved Flight Unit Treads Light Treads Leg Zionite Composite Leg I Wheel Compact Wheel Hover Unit Zionite Glidesys I Flight Unit Improved Flight Unit Utility Medium Storage Unit Device Advanced Sensor Array Storage Medium Storage Unit Processor Improved Signal Interpreter Hackware Hacking Suite Protection Zionite Light Carapace Weapon Zionite Laser-S Energy Gun Zionite Laser-S Energy Cannon Compact Ion Cannon Ballistic Gun Autogun Ballistic Cannon Advanced Assault Cannon Launcher Mini Grenade Launcher Special Weapon CPS Tube Impact Weapon Hammer Slashing Weapon Greatsword Piercing Weapon Heavy Pick Special Melee Weapon Datajack Build | -11 -10 -10 -9 -9 -9 -9 -6 -6 -6 -6 -6 -6 -6 -5 ------- Run | Yrd Mat Min Mat Sto Rec Scr Fac Was Fac Low Low Zio Dee Pro Slots Evolved 8 | . . . 2 . . . 6 . . . . . . . Power . | . . . . . . . . . . . . . . . Propulsion 4 | . . . 2 . . . 2 . . . . . . . Utility 4 | . . . . . . . 4 . . . . . . . Weapon . | . . . . . . . . . . . . . . . Parts Attached 139 | 7 12 6 16 10 5 10 20 . 29 2 1 4 15 2 Power 10 | 1 1 . 1 . . 1 4 . . . . 1 1 . Engine 5 | 1 1 . 1 . . . 2 . . . . . . . Core 3 | . . . . . . 1 1 . . . . 1 . . Reactor 2 | . . . . . . . 1 . . . . . 1 . Propulsion 42 | 2 5 3 7 5 1 1 7 . 7 . . . 4 . Treads 1 | 1 . . . . . . . . . . . . . . Leg 2 | . . . . . . . . . . . . . 2 . Wheel 1 | 1 . . . . . . . . . . . . . . Hover 3 | . . . . . 1 . . . . . . . 2 . Flight 35 | . 5 3 7 5 . 1 7 . 7 . . . . . Utility 46 | 2 2 1 2 2 4 5 7 . 13 . . . 6 2 Device 20 | 1 1 . . 1 2 1 3 . 8 . . . 2 1 Storage 7 | 1 . . 1 . 1 2 1 . . . . . 1 . Processor 3 | . . . . . . 1 . . 2 . . . . . Hackware 5 | . . . 1 . 1 . 2 . 1 . . . . . Protection 11 | . 1 1 . 1 . 1 1 . 2 . . . 3 1 Artifact . | . . . . . . . . . . . . . . . Weapon 41 | 2 4 2 6 3 . 3 2 . 9 2 1 3 4 . Energy Gun 7 | . . . . . . . . . 1 1 . 2 3 . Energy Cannon 3 | . . . . 2 . . . . 1 . . . . . Ballistic Gun 17 | 2 3 2 5 1 . . 1 . 2 1 . . . . Ballistic Cannon 1 | . . . . . . . . . . . 1 . . . Launcher 1 | . . . . . . . . . 1 . . . . . Special Weapon 2 | . 1 . . . . 1 . . . . . . . . Impact Weapon 3 | . . . 1 . . 1 . . . . . 1 . . Slashing Weapon 3 | . . . . . . 1 . . 2 . . . . . Piercing Weapon 1 | . . . . . . . 1 . . . . . . . Special Melee Weapon 3 | . . . . . . . . . 2 . . . 1 . Unidentified Prototypes 21 | . . . . 4 4 . 4 . 2 . . . 7 . Corrupted Parts 1 | . . . . . 1 . . . . . . . . . System Corruption 1 | . . . . . 1 . . . . . . . . . Parts Lost 28 | . 2 2 1 1 . . 1 . 7 . . 5 9 . Power 3 | . 1 . . . . . . . . . . 1 1 . Propulsion 12 | . . 1 1 1 . . . . 2 . . 2 5 . Utility 7 | . 1 1 . . . . 1 . 2 . . 1 1 . Weapon 6 | . . . . . . . . . 3 . . 1 2 . Highest Loss Streak 8 | . 1 2 1 1 . . 1 . 2 . . 5 8 . To Critical Strikes 1 | . . . . . . . . . 1 . . . . . Average Backups 8 | 2 5 4 8 9 9 9 9 10 9 10 10 9 5 9 Power . | . . 1 . 1 . . 1 1 1 1 1 . . . Propulsion 2 | 1 2 2 3 3 3 3 2 3 2 1 1 . . . Utility 4 | . . . . 2 3 3 3 5 6 7 8 8 5 9 Weapon . | . 1 1 3 2 1 . 1 1 . . . . . . Tool/Special . | . . . . . . . . . . . . . . . Unused Backups 32 | 1 6 . 3 4 1 . 7 . 2 . 1 . 1 6 Power 3 | . 1 . . . . . 1 . 1 . . . . . Propulsion 11 | 1 3 . 1 4 . . 1 . 1 . . . . . Utility 12 | . 1 . . . . . 4 . . . 1 . 1 5 Weapon 4 | . 1 . 2 . 1 . . . . . . . . . Tool/Special 2 | . . . . . . . 1 . . . . . . 1 Average Slot Usage (%) 89 | . 91 78 98 99 97 96 96 100 94 94 100 98 68 86 Engine 3 | . 7 . 10 11 11 7 . . . . . . . . Core 2 | . . . . . . 3 6 6 6 6 6 6 . . Reactor 1 | . . . . . . . . . . . . . 5 6 Leg 1 | . . . . . . . . . . . . . 1 13 Hover 1 | . . . . . . . . . . . . . 2 6 Flight 28 | . 12 27 43 43 43 44 39 40 39 40 40 39 8 6 Device 9 | . 7 14 11 11 . . 15 20 9 6 6 6 9 13 Storage 6 | . 7 . 9 11 10 10 6 6 6 6 6 6 1 6 Processor 3 | . . . . . . . . . 7 6 6 6 6 6 Hackware 8 | . . . 1 . 10 11 12 13 13 13 13 13 12 6 Protection 4 | . 10 8 . . . . 4 . 2 6 6 5 7 5 Energy Gun 2 | . . . . . . . . . . 3 1 4 7 13 Ballistic Gun 6 | . 24 27 16 2 9 . 3 6 2 3 6 1 . . Impact Weapon 2 | . . . 5 11 11 3 . . . . . 4 . . Slashing Weapon 1 | . . . . . . 7 2 . 3 . . . . . Peak Build Rating 71 | 7 7 6 20 29 26 31 63 62 69 64 62 63 69 71 Average Rating 41 | 4 6 5 16 22 21 25 58 62 61 60 61 59 51 69 On Entrance 35 | . 7 6 5 19 20 21 31 62 62 56 62 62 45 69 Avg Prop Armor Cover (%) 4 | 17 11 . . . . . . . 6 3 2 1 2 4 Naked Turns . | . . . . . . . . . . . . . . . Heaviest Build 34 | 12 14 8 20 20 19 20 27 24 30 20 24 27 32 34 Greatest Support 48 | 16 16 8 20 20 20 20 34 34 37 31 25 29 48 48 Greatest Overweight (x) 7 | . . . . . . . . . . . . . 7 . Average Overweight (x) . | . . . . . . . . . . . . . 1 . Largest Inventory Capacity 20 | 8 8 5 10 10 10 20 10 10 10 10 10 10 10 10 Average Capacity 8 | 6 6 5 9 10 9 9 10 10 10 10 10 10 5 10 Most Carried 10 | 3 7 5 10 10 10 10 10 10 10 10 10 10 9 10 Average Carried 8 | 2 5 4 8 9 9 9 9 10 9 9 10 9 5 9 Final Capacity 10 | 8 5 5 10 10 10 10 10 10 10 10 10 10 10 10 Final Carried 10 | 3 5 5 9 10 10 10 10 10 10 10 10 8 9 10 Class Distribution -------------------- 27% | Hacker-Sprinter 15% | Mutant 13% | Scavenger-Mutant 12% | Sprinter 9% | Commander-Sprinter 8% | Hacker-Mutant 4% | Hacker-Scout 4% | Scavenger-Sprinter Dominant Class ---------------- Mutant | -10/Materials Mutant | -10/Mines Sprinter | -9/Materials Commander-Sprinter | -9/Storage Commander-Sprinter | -9/Recycling Sprinter | -9/Scraptown Hacker-Sprinter | -6/Factory Hacker-Sprinter | -6/Waste Hacker-Sprinter | -6/Factory Hacker-Sprinter | -6/Lower Caves Hacker-Sprinter | -6/Lower Caves Hacker-Sprinter | -6/Zion Hacker-Mutant | -6/Deep Caves Scavenger-Mutant | -5/Proximity Caves Resources | -11 -10 -10 -9 -9 -9 -9 -6 -6 -6 -6 -6 -6 -6 -5 ----------- Run | Yrd Mat Min Mat Sto Rec Scr Fac Was Fac Low Low Zio Dee Pro Matter Collected 4543 | 322 441 207 319 213 106 96 1187 64 998 62 73 41 321 93 Remotely . | . . . . . . . . . . . . . . . Salvage Created 4890 | 158 572 202 370 604 111 . 1149 . 1408 . 11 . 280 25 Parts 271 | 12 40 10 29 28 5 . 67 . 70 . . . 6 4 Haulers Intercepted 14 | . . . 3 5 . . 2 . 4 . . . . . Recyclers Shooed 8 | 1 1 . . . . . 5 . 1 . . . . . Parts Field Recycled . | . . . . . . . . . . . . . . . Retrieved Matter . | . . . . . . . . . . . . . . . Parts Self-Destructed 2 | . . . . . . . . . . . . . . 2 Prevented . | . . . . . . . . . . . . . . . Parts Restored . | . . . . . . . . . . . . . . . Kills | -11 -10 -10 -9 -9 -9 -9 -6 -6 -6 -6 -6 -6 -6 -5 ------- Run | Yrd Mat Min Mat Sto Rec Scr Fac Was Fac Low Low Zio Dee Pro Combat Hostiles Destroyed 66 | . 16 9 7 3 2 . 7 . 12 . 1 . 9 . Melee 13 | . . . . . . . 7 . 5 . . . 1 . Guns 48 | . 16 9 6 1 2 . . . 6 . 1 . 7 . Cannons 1 | . . . . 1 . . . . . . . . . . AOE 2 | . . . . 1 . . . . 1 . . . . . Classes Destroyed 18 | 2 4 . 2 3 1 . 1 . 1 . 1 . 2 1 Worker 2 | . . . . 2 . . . . . . . . . . Builder 12 | . . . . 1 1 . 7 . 3 . . . . . Tunneler 6 | 4 . . . . . . 2 . . . . . . . Hauler 14 | . . . 3 5 . . 2 . 4 . . . . . Recycler 8 | 1 1 . . 1 . . 3 . 2 . . . . . Minesweeper 1 | . . . . . . . . . . . . . . 1 Mechanic 3 | . . . . 1 . . 1 . 1 . . . . . Operator 6 | . 3 . . 2 . . 1 . . . . . . . Watcher 8 | . 2 . . 2 . . 2 . 2 . . . . . Swarmer 27 | . 9 7 3 . . . 5 . 3 . . . . . Cutter 3 | . . . . . . . 1 . 2 . . . . . Grunt 14 | . 7 2 1 3 . . . . 1 . . . . . Sentry 7 | . . . 3 . 1 . . . 3 . . . . . Hunter 2 | . . . . . . . . . 2 . . . . . Programmer 3 | . . . . . 1 . 1 . 1 . . . . . Z-Technician 2 | . . . . . . . . . . . . . 2 . Z-Light 2 | . . . . . . . . . . . . . 2 . Thief 1 | . . . . . . . . . . . 1 . . . Assembled 7 | . . . . . . . . . . . . . 7 . Best Kill Streak 5 | 3 4 4 3 4 2 . 5 . 4 . 1 . 3 1 Combat Bots Only 5 | . 3 4 3 2 2 . 5 . 4 . 1 . 3 . Max Kills in Single Turn 2 | 1 1 1 1 2 1 . 1 . 1 . 1 . 2 1 Gunslinging 1 | . . . . . . . . . . . . . 1 . Exploded 1 | . . . . 1 . . . . 1 . . . . . Melee 1 | . . . . . . . 1 . 1 . . . 1 . Uniques/NPCs Destroyed . | . . . . . . . . . . . . . . . Combat | -11 -10 -10 -9 -9 -9 -9 -6 -6 -6 -6 -6 -6 -6 -5 -------- Run | Yrd Mat Min Mat Sto Rec Scr Fac Was Fac Low Low Zio Dee Pro Hostile Shots Fired 647 | . 74 50 39 15 12 . 65 . 281 . 3 55 42 11 Missed 276 | . 26 11 14 7 3 . 41 . 131 . 2 31 7 3 Hits 371 | . 48 39 25 8 9 . 24 . 150 . 1 24 35 8 Melee 3 | . . . . . . . . . 2 . 1 . . . Projectile 368 | . 48 39 25 8 9 . 24 . 148 . . 24 35 8 AOE 1 | . . . . . . . . . 1 . . . . . Critical Strikes 8 | . 1 1 . . 1 . . . 5 . . . . . Actively Blocked 1 | . . . . . . . . . 1 . . . . . Part Disruptions 1 | . . . . . . . . . . . . 1 . . Actively Blocked 1 | . . . . . . . . . . . . 1 . . Damage Taken 4700 | . 562 366 288 126 173 . 354 . 1510 . 12 335 850 124 Core 1260 | . 102 142 87 11 51 . 66 . 378 . . 42 318 63 Absorbed by Shields 586 | . . . . . . . . . 586 . . . . . Redirected to Shielding 400 | . . . . . . . . . 316 . . 42 42 . Regen/Repaired (Parts) 266 | . . . 37 27 . . 107 1 94 . . . . . Core Remaining (%) 54 | 100 . 2 . . . 62 . . . . . . . . Volleys Fired 299 | 13 81 30 35 48 7 . . . 33 . 3 1 35 13 Largest 2 | 2 2 2 2 1 1 . . . 2 . 2 1 2 2 Hottest 120 | 40 100 40 46 90 23 . . . 103 . 74 40 120 120 Shots Fired 493 | 26 148 60 70 49 7 . . . 58 . 6 1 42 26 Gun 433 | 26 139 60 70 2 7 . . . 55 . 6 . 42 26 Cannon 48 | . . . . 47 . . . . . . . 1 . . Launcher 3 | . . . . . . . . . 3 . . . . . Special 9 | . 9 . . . . . . . . . . . . . Kinetic 362 | 26 139 60 70 2 7 . . . 54 . 3 1 . . Thermal 128 | . 9 . . 47 . . . . 1 . 3 . 42 26 Explosive 3 | . . . . . . . . . 3 . . . . . Electromagnetic . | . . . . . . . . . . . . . . . Robot Hit Streak 20 | 6 5 9 19 20 3 . . . 11 . 3 . 7 2 Robot Miss Streak 5 | 3 4 5 4 5 1 . . . 2 . 3 . 2 2 Penetration Max . | . . . . . . . . . . . . . . . Secondary Targets 5 | . . 4 . . . . . . . . . . 1 . Max Gunslinging Chain 1 | . . 1 . . . . . . . . . . 1 . Shots Hit Robots 366 | 16 76 29 50 31 7 . 49 . 77 . 3 4 20 4 Core Hits 170 | 8 36 15 16 14 3 . 22 . 40 . 3 . 11 2 Critical Kills 4 | . . . . 3 . . . . 1 . . . . . Critical Parts Destroyed 5 | . . . 1 1 1 . . . . . . 2 . . Critical Strikes 24 | . . . 1 4 1 . 8 . 8 . . 2 . . Destroy 2 | . . . . . . . . . 2 . . . . . Smash 8 | . . . 1 4 1 . . . . . . 2 . . Sever 6 | . . . . . . . 2 . 4 . . . . . Impale 8 | . . . . . . . 6 . 2 . . . . . Melee Attacks 220 | . . . 11 22 6 . 102 . 63 . . 4 12 . Impact 55 | . . . 11 22 6 . . . . . . 4 12 . Slashing 87 | . . . . . . . 39 . 48 . . . . . Piercing 78 | . . . . . . . 63 . 15 . . . . . Sneak Attacks 40 | . . . 1 6 2 . 18 . 10 . . 1 2 . Combat Hostiles 1 | . . . . 1 . . . . . . . . . . Follow-up Attacks 1 | . . . . . . . . . 1 . . . . . Damage Inflicted 10703 | 156 870 308 654 1193 229 . 2816 . 3198 . 68 274 823 114 Guns 3093 | 156 836 308 565 38 88 . . . 547 . 68 . 373 114 Cannons 609 | . . . . 609 . . . . . . . . . . Explosions 381 | . 34 . . 102 . . . . 245 . . . . . Melee 6620 | . . . 89 444 141 . 2816 . 2406 . . 274 450 . Ramming . | . . . . . . . . . . . . . . . Kinetic 2567 | 156 836 308 565 38 88 . . . 525 . 51 . . . Thermal 1135 | . . . . 609 . . . . 22 . 17 . 373 114 Explosive 381 | . 34 . . 102 . . . . 245 . . . . . Electromagnetic . | . . . . . . . . . . . . . . . Impact 1398 | . . . 89 444 141 . . . . . . 274 450 . Slashing 2850 | . . . . . . . 972 . 1878 . . . . . Piercing 2372 | . . . . . . . 1844 . 528 . . . . . Highest Corruption 3 | . . . . 2 3 . . . 2 . . 1 1 1 Average Corruption 1 | . . . . 2 2 . . . 1 . . 1 1 1 Corruption Purged 2 | . . . . . . . . . 2 . . . . . Corruption Blocked . | . . . . . . . . . . . . . . . Effects 43 | . . . . 17 4 . . . 2 . . . 13 7 Message Errors 12 | . . . . 3 1 . . . . . . . 5 3 Matter Fused 10 | . . . . 5 1 . . . 1 . . . 2 1 Heat Flow Errors 5 | . . . . 1 . . . . 1 . . . 3 . Energy Discharges 4 | . . . . 4 . . . . . . . . . . Data Loss (minor) 5 | . . . . 1 . . . . . . . . 3 1 Data Loss (major) 6 | . . . . 2 2 . . . . . . . . 2 Misfires 1 | . . . . 1 . . . . . . . . . . Overload Shots . | . . . . . . . . . . . . . . . Overflow Damage 1406 | . . . 35 99 63 . 352 . 546 . . 122 189 . Projectiles 17 | . . . . 17 . . . . . . . . . . Explosions . | . . . . . . . . . . . . . . . Melee 1389 | . . . 35 82 63 . 352 . 546 . . 122 189 . Knockbacks 6 | . . . . 1 1 . . . . . . 3 1 . Impact 6 | . . . . 1 1 . . . . . . 3 1 . Kinetic . | . . . . . . . . . . . . . . . Secondary . | . . . . . . . . . . . . . . . Self-Inflicted Damage 93 | . 93 . . . . . . . . . . . . . Shots 1 | . 1 . . . . . . . . . . . . . Rammed . | . . . . . . . . . . . . . . . Targets Rammed . | . . . . . . . . . . . . . . . Kicked . | . . . . . . . . . . . . . . . Crushed . | . . . . . . . . . . . . . . . Highest Temperature 354 | . 40 24 21 354 28 1 . . 230 . . 43 269 207 Average Temperature 76 | . 10 4 6 117 10 1 . . 67 . . 21 84 74 Received Heat Transfer 992 | . 159 84 48 51 75 . 36 . 176 . . 118 245 . Effects 10 | . . . . 10 . . . . . . . . . . Shutdowns 1 | . . . . 1 . . . . . . . . . . Energy Bleed 6 | . . . . 6 . . . . . . . . . . Interference 3 | . . . . 3 . . . . . . . . . . Siege Activations . | . . . . . . . . . . . . . . . Martial Activations . | . . . . . . . . . . . . . . . Shielding Activations . | . . . . . . . . . . . . . . . Robots Disrupted . | . . . . . . . . . . . . . . . Combat Hostiles . | . . . . . . . . . . . . . . . Robots Corrupted 8 | . . . 2 3 1 . . . . . . . 2 . Combat Hostiles 2 | . . . 1 . . . . . . . . . 1 . Parts Fried 15 | . . . 5 3 2 . . . . . . . 5 . Impact Corruptions 28 | . . . 2 5 2 . . . . . . 9 10 . Robots Melted . | . . . . . . . . . . . . . . . Combat Hostiles . | . . . . . . . . . . . . . . . Parts Melted 1 | . . . . . . . . . . . . . 1 . Heat Transferred 1530 | . . . . 814 . . . . 50 . 37 . 481 148 Parts Sabotaged . | . . . . . . . . . . . . . . . Parts Stolen . | . . . . . . . . . . . . . . . Parts Stripped . | . . . . . . . . . . . . . . . Power Chain Reactions . | . . . . . . . . . . . . . . . Alert | -11 -10 -10 -9 -9 -9 -9 -6 -6 -6 -6 -6 -6 -6 -5 ------- Run | Yrd Mat Min Mat Sto Rec Scr Fac Was Fac Low Low Zio Dee Pro Maximum Alert Level 5 | . 2 1 1 1 1 . 3 1 5 . . . . . Low Security (%) 38 | 100 79 18 46 14 90 . 43 . 1 . . . . . Level 1 33 | . 19 81 53 85 9 . 20 100 2 . . . . . Level 2 3 | . . . . . . . 13 . 6 . . . . . Level 3 15 | . . . . . . . 22 . 50 . . . . . Level 4 8 | . . . . . . . . . 36 . . . . . Level 5 . | . . . . . . . . . 2 . . . . . High Security . | . . . . . . . . . . . . . . . Max Security . | . . . . . . . . . . . . . . . Peak Influence 1609 | 10 412 304 326 372 226 . 858 300 1609 . . . . . Initial 300 | . 3 157 98 96 120 . . 300 175 . . . . . Average 426 | 2 130 245 198 261 131 . 325 277 1119 . . . . . Influence Increases 6304 | 25 771 307 511 637 324 . 1402 . 2322 . . . . 5 Destroy 0b10 Robot/C 1860 | . 320 220 140 160 140 . 200 . 680 . . . . . Destroy 0b10 Robot/NC 305 | 25 30 . 15 70 5 . 90 . 65 . . . . 5 Destroy Leader 446 | . 64 50 46 64 . . 48 . 174 . . . . . Allied During Kill 496 | . . 7 . 75 28 . . . 386 . . . . . Successful Hack 372 | . 27 . 62 77 . . 118 . 88 . . . . . Select Force Hacks 270 | . 60 . 30 . 150 . . . 30 . . . . . Disable Machine 195 | . 30 . . 75 . . 30 . 60 . . . . . Anti-Garrison Action 400 | . . . . . . . 200 . 200 . . . . . Destroy Structure 205 | . 30 . 8 41 1 . 41 . 84 . . . . . Partial Spotted 225 | . . . 30 75 . . 75 . 45 . . . . . Lose Combat Pursuer 1530 | . 210 30 180 . . . 600 . 510 . . . . . Influence Decreases 6304 | 20 370 459 536 557 633 . 544 608 967 635 255 715 . 5 Entered New Map 2857 | . 2 249 156 133 189 . . 558 75 595 185 715 . . Time Decay 2423 | 20 358 170 270 374 190 . 374 50 502 40 70 . . 5 Search Patrol Dispatched 200 | . . . 100 . . . 100 . . . . . . . Lost Part 130 | . 10 20 10 10 . . 10 . 70 . . . . . Lost Ally 694 | . . 20 . 40 254 . 60 . 320 . . . . . Squads Dispatched 62 | . 8 . 2 3 . . 22 . 27 . . . . . Investigation 36 | . 5 . 2 1 . . 13 . 15 . . . . . Extermination 7 | . . . . . . . 3 . 4 . . . . . Reinforcement 15 | . 3 . . 2 . . 6 . 4 . . . . . Assault 3 | . . . . . . . . . 3 . . . . . Garrison 1 | . . . . . . . . . 1 . . . . . Intercept . | . . . . . . . . . . . . . . . Searches Triggered 2 | . . . 1 . . . 1 . . . . . . . Construction Impeded 1 | . . . . . . . 1 . . . . . . . Haulers Reinforced . | . . . . . . . . . . . . . . . Active Scanning Responses . | . . . . . . . . . . . . . . . Cargo Convoy Interrupts . | . . . . . . . . . . . . . . . Stealth | -11 -10 -10 -9 -9 -9 -9 -6 -6 -6 -6 -6 -6 -6 -5 --------- Run | Yrd Mat Min Mat Sto Rec Scr Fac Was Fac Low Low Zio Dee Pro Distress Signals 12 | . 3 . 1 2 . . 1 . 5 . . . . . Communications Jammed . | . . . . . . . . . . . . . . . Distress Signals . | . . . . . . . . . . . . . . . Times Spotted 288 | . 44 13 21 32 6 . 60 . 77 . 1 19 11 4 Peak Tracking Total 19 | . 5 5 6 4 5 . 10 . 13 . 1 19 3 4 Tactical Retreats 46 | . 8 2 6 . . . 15 . 13 . . 2 . . Traps | -11 -10 -10 -9 -9 -9 -9 -6 -6 -6 -6 -6 -6 -6 -5 ------- Run | Yrd Mat Min Mat Sto Rec Scr Fac Was Fac Low Low Zio Dee Pro Traps Triggered 8 | . 1 . . 1 . . 2 . 4 . . . . . Indirectly . | . . . . . . . . . . . . . . . Trap Hack Attempts 22 | . . . . . . . . . 22 . . . . . Triggered 1 | . . . . . . . . . 1 . . . . . Disarmed 1 | . . . . 1 . . . . . . . . . . Reprogrammed 4 | . . . . . . . . . 4 . . . . . Reused . | . . . . . . . . . . . . . . . Traps Extracted 6 | . . . . . . . . . 4 . . . . 2 Installed . | . . . . . . . . . . . . . . . Triggered . | . . . . . . . . . . . . . . . Most Traps Carried 8 | . . . . . . . . . 4 4 4 4 4 8 Machines | -11 -10 -10 -9 -9 -9 -9 -6 -6 -6 -6 -6 -6 -6 -5 ---------- Run | Yrd Mat Min Mat Sto Rec Scr Fac Was Fac Low Low Zio Dee Pro Machines Disabled 14 | . 2 . . 5 . . 2 . 4 . . 1 . . Max in Single Turn 2 | . 2 . . 1 . . . . 1 . . 1 . . Garrison Access 6 | . . . . 1 . . 2 . 3 . . . . . Machines Repaired . | . . . . . . . . . . . . . . . Machines Dismantled . | . . . . . . . . . . . . . . . Machines Sabotaged . | . . . . . . . . . . . . . . . Overloaded Fab Kills . | . . . . . . . . . . . . . . . Hacking | -11 -10 -10 -9 -9 -9 -9 -6 -6 -6 -6 -6 -6 -6 -5 --------- Run | Yrd Mat Min Mat Sto Rec Scr Fac Was Fac Low Low Zio Dee Pro Machines Accessed 112 | . 7 . 14 15 11 2 30 . 29 2 . 1 . 1 Terminals 60 | . 5 . 10 12 6 . 13 . 12 1 . . . 1 Fabricators 5 | . . . . . . . 3 . 2 . . . . . Repair Stations 5 | . . . 1 1 . . . . 3 . . . . . Recycling Units 24 | . 2 . 1 1 5 . 8 . 7 . . . . . Scanalyzers 7 | . . . 2 . . . 3 . 2 . . . . . Garrison Access 7 | . . . . 1 . . 3 . 3 . . . . . Total Hacks 269 | . 15 . 47 38 24 9 70 . 59 2 . 4 . 1 Successful 172 | . 11 . 23 19 18 9 47 . 38 2 . 4 . 1 Failed 95 | . 4 . 24 19 6 . 22 . 20 . . . . . Catastrophic 11 | . . . 2 3 1 . 1 . 4 . . . . . Database Lockouts 2 | . . . . . . . 1 . 1 . . . . . Manual 159 | . 13 . 27 22 19 . 39 . 35 . . 4 . . Terminals 169 | . 12 . 37 33 19 . 39 . 27 1 . . . 1 Fabricators 13 | . . . . . . . 7 . 6 . . . . . Repair Stations 8 | . . . 2 2 . . . . 4 . . . . . Recycling Units 28 | . 3 . 1 1 5 . 10 . 8 . . . . . Scanalyzers 23 | . . . 7 . . . 10 . 6 . . . . . Garrison Access 14 | . . . . 2 . . 4 . 8 . . . . . Terminal Hacks 54 | . 2 . 8 8 5 9 11 . 4 2 . 4 . 1 Record 12 | . . . . . 1 9 . . . 1 . . . 1 Part Schematic 9 | . . . . 1 1 . 2 . 1 . . 4 . . Robot Analysis 5 | . . . 3 . . . 2 . . . . . . . Prototype ID Bank 7 | . 1 . 2 1 3 . . . . . . . . . Open Door 4 | . . . . 3 . . . . . 1 . . . . Branch Access Points 5 | . . . 1 1 . . 2 . 1 . . . . . Terminal Index 2 | . . . 1 . . . 1 . . . . . . . Locate Traps 3 | . 1 . . 1 . . . . 1 . . . . . Disarm Traps 1 | . . . . 1 . . . . . . . . . . Recall Extermination 2 | . . . . . . . 2 . . . . . . . Registered Components 1 | . . . . . . . 1 . . . . . . . Zone Layout 3 | . . . 1 . . . 1 . 1 . . . . . Fabricator Hacks 7 | . . . . . . . 2 . 5 . . . . . Network Status 2 | . . . . . . . 1 . 1 . . . . . Load Schematic 3 | . . . . . . . 1 . 2 . . . . . Build 2 | . . . . . . . . . 2 . . . . . Repair Station Hacks 6 | . . . 2 2 . . . . 2 . . . . . Scan Component 2 | . . . 1 1 . . . . . . . . . . Repair 2 | . . . 1 1 . . . . . . . . . . Refit 2 | . . . . . . . . . 2 . . . . . Recycling Unit Hacks . | . . . . . . . . . . . . . . . Scanalyzer 15 | . . . 3 . . . 8 . 4 . . . . . Insert Component 5 | . . . . . . . 4 . 1 . . . . . Analyze 4 | . . . . . . . 2 . 2 . . . . . Retrieve Study 6 | . . . 3 . . . 2 . 1 . . . . . Garrison Access Hacks 4 | . . . . 1 . . 1 . 2 . . . . . Seal Access 4 | . . . . 1 . . 1 . 2 . . . . . Unauthorized Hacks 86 | . 9 . 10 8 13 . 25 . 21 . . . . . Terminals 53 | . 6 . 9 7 8 . 14 . 9 . . . . . Track 4 | . . . . . . . 3 . 1 . . . . . Assimilate 3 | . . . . . . . 2 . 1 . . . . . Botnet 12 | . 1 . 2 2 3 . 2 . 2 . . . . . Disrupt 2 | . 1 . . . . . 1 . . . . . . . Operators 1 | . . . 1 . . . . . . . . . . . Skim 31 | . 4 . 6 5 5 . 6 . 5 . . . . . Fabricators 3 | . . . . . . . 2 . 1 . . . . . Prioritize 1 | . . . . . . . . . 1 . . . . . Liberate 1 | . . . . . . . 1 . . . . . . . Recompile 1 | . . . . . . . 1 . . . . . . . Repair Stations 2 | . . . . . . . . . 2 . . . . . Patch 2 | . . . . . . . . . 2 . . . . . Recycling Units 25 | . 3 . 1 1 5 . 8 . 7 . . . . . Reject 2 | . 1 . . 1 . . . . . . . . . . Tunnel 8 | . 2 . 1 . 5 . . . . . . . . . Fedlink 15 | . . . . . . . 8 . 7 . . . . . Scanalyzers 1 | . . . . . . . . . 1 . . . . . Extract 1 | . . . . . . . . . 1 . . . . . Garrison Access 2 | . . . . . . . 1 . 1 . . . . . Jam 2 | . . . . . . . 1 . 1 . . . . . Data Cores Recovered . | . . . . . . . . . . . . . . . Used . | . . . . . . . . . . . . . . . Hacking Detections 74 | . 6 . 11 10 6 . 21 . 20 . . . . . Full Trace Events 10 | . 1 . 1 2 . . 3 . 3 . . . . . Feedback Events 2 | . . . . . . . 1 . 1 . . . . . Corruption 1 | . . . . . . . . . 1 . . . . . Hackware Fried 1 | . . . . . . . 1 . . . . . . . Feedback Blocked . | . . . . . . . . . . . . . . . Robot Schematics Acquired 3 | . . . . . . . . . . . . 3 . . Robots Built . | . . . . . . . . . . . . . . . Authchips . | . . . . . . . . . . . . . . . Time . | . . . . . . . . . . . . . . . Total Robot Build Rating . | . . . . . . . . . . . . . . . Part Schematics Acquired 37 | . . . . 1 1 . 4 . 13 . . 18 . . Parts Built 4 | . . . . . . . . . 4 . . . . . Authchips 1 | . . . . . . . . . 1 . . . . . Time 78 | . . . . . . . . . 78 . . . . . Total Part Build Rating 14 | . . . . . . . . . 14 . . . . . Part Studies Acquired 6 | . . . 3 . . . 2 . 1 . . . . . Parts Repaired 2 | . . . 1 1 . . . . . . . . . . Time 77 | . . . 26 51 . . . . . . . . . . Parts Recycled . | . . . . . . . . . . . . . . . Recycled Matter . | . . . . . . . . . . . . . . . Retrieved Matter . | . . . . . . . . . . . . . . . Retrieved Components . | . . . . . . . . . . . . . . . Parts Scanalyzed 4 | . . . . . . . 3 . 1 . . . . . Part Schematics Acquired 3 | . . . . . . . 2 . 1 . . . . . Parts Damaged 2 | . . . . . . . 2 . . . . . . . Bothacking | -11 -10 -10 -9 -9 -9 -9 -6 -6 -6 -6 -6 -6 -6 -5 ------------ Run | Yrd Mat Min Mat Sto Rec Scr Fac Was Fac Low Low Zio Dee Pro Used RIF Installer . | . . . . . . . . . . . . . . . Robots Hacked . | . . . . . . . . . . . . . . . Non-combat . | . . . . . . . . . . . . . . . Combat . | . . . . . . . . . . . . . . . Robot Hacks Applied . | . . . . . . . . . . . . . . . Relay Couplers Released . | . . . . . . . . . . . . . . . Fabnet Peak Effective % . | . . . . . . . . . . . . . . . Robots Rewired 6 | . . . . . 6 . . . . . . . . . Allies Hacked . | . . . . . . . . . . . . . . . Hacks Repelled . | . . . . . . . . . . . . . . . Allies | -11 -10 -10 -9 -9 -9 -9 -6 -6 -6 -6 -6 -6 -6 -5 -------- Run | Yrd Mat Min Mat Sto Rec Scr Fac Was Fac Low Low Zio Dee Pro Total Allies 45 | . . 1 . 10 6 . 4 20 1 . . 3 . . Largest Group 20 | . . 1 . 10 8 1 2 20 20 . . 3 . . Highest-Rated Group 710 | . . 31 . 88 87 8 82 710 710 . . 79 . . Highest-Rated Ally 50 | . . 31 . 16 16 8 41 50 50 . . 31 . . Initial UFD Resources 67 | . . . . . . . 24 50 50 64 64 64 64 67 Total Orders 2 | . . . . . 2 . . . . . . . . . STAY 1 | . . . . . 1 . . . . . . . . . FOLLOW 1 | . . . . . 1 . . . . . . . . . Ally Attacks 188 | . . 11 . 39 28 . 18 . 92 . . . . . Total Damage 4190 | . . 145 . 352 246 . 526 . 2921 . . . . . Kills 39 | . . 2 . 5 5 . 3 . 24 . . . . . Allies Corrupted . | . . . . . . . . . . . . . . . Allies Melted . | . . . . . . . . . . . . . . . Intel | -11 -10 -10 -9 -9 -9 -9 -6 -6 -6 -6 -6 -6 -6 -5 ------- Run | Yrd Mat Min Mat Sto Rec Scr Fac Was Fac Low Low Zio Dee Pro Active Infowar (turns) 7259 | 9 565 359 589 845 22 1 621 107 1146 99 157 353 1642 744 Optics 298 | . . . . . . . . . 298 . . . . . Sensors 4023 | . . . . . . . . . 1028 99 157 353 1642 744 Structural 2865 | . 409 359 589 845 22 . 303 107 231 . . . . . Seismic 165 | 9 156 . . . . . . . . . . . . . Cloaking 1961 | . . . . . . . 318 . . . . . 940 703 ECM 1 | . . . . . . 1 . . . . . . . . Robot Analysis Total 5 | . . . 3 . . . 2 . . . . . . . Derelict Logs Recovered 6 | . . 2 . . . . . . . 1 . 1 . 2 Drone Launches . | . . . . . . . . . . . . . . . Drone Recoveries . | . . . . . . . . . . . . . . . Exploration | -11 -10 -10 -9 -9 -9 -9 -6 -6 -6 -6 -6 -6 -6 -5 ------------- Run | Yrd Mat Min Mat Sto Rec Scr Fac Was Fac Low Low Zio Dee Pro Turns Passed 9160 | 97 1002 359 589 863 488 354 949 107 1353 99 157 353 1646 744 Spaces Moved 14736 | 58 1016 668 1101 1307 761 1012 2305 163 2866 352 548 892 1109 578 Core 206 | 23 . . . . . . . . . . . . 183 . Treads . | . . . . . . . . . . . . . . . Legs 782 | . . . . . . . . . . . . . 204 578 Wheels 439 | 35 404 . . . . . . . . . . . . . Hover 398 | . . . . . . . . . . . . . 398 . Flight 12911 | . 612 668 1101 1307 761 1012 2305 163 2866 352 548 892 324 . Fastest Speed 21 | 50 37 37 26 26 31 31 24 24 22 22 25 21 25 110 Average Speed 40 | 80 62 37 27 29 31 31 24 24 25 23 25 23 126 110 Slowest Speed 400 | 100 100 37 37 31 31 31 25 24 31 26 25 25 400 110 Overloaded Moves . | . . . . . . . . . . . . . . . Propulsion Burnouts . | . . . . . . . . . . . . . . . Robots Hopped 102 | . 7 19 6 18 8 2 6 . 28 3 2 3 . . Potential Cave-ins . | . . . . . . . . . . . . . . . Cave-ins Triggered . | . . . . . . . . . . . . . . . Exploration Rate (%) 75 | 2 97 80 79 96 99 87 57 87 71 61 68 86 84 75 Regions Visited 14 Branch Regions 9 Pre-discovered Areas 21 | . 2 2 3 1 6 2 3 . . . . 2 . . Known Exits Taken 7 | . . . 1 1 . . . . 1 1 1 1 1 . Unknown Exits Taken 5 | 1 1 1 . . 1 1 . . . . . . . . Scrap Searched 16 | . . 1 . . . 8 . . . 1 3 2 . 1 Spaces Dug 112 | . 7 . 8 5 1 . 42 . 17 . . . 20 12 Terrain Destroyed 187 | . 27 . 8 39 1 . 42 . 28 . . . 25 17 Melee 74 | . . . 8 5 1 . 42 . 17 . . . 1 . Projectile 70 | . 9 . . 20 . . . . . . . . 24 17 AOE 43 | . 18 . . 14 . . . . 11 . . . . . Terrain Rammed . | . . . . . . . . . . . . . . . Walls Destroyed . | . . . . . . . . . . . . . . . Machines Disabled . | . . . . . . . . . . . . . . . Actions | -11 -10 -10 -9 -9 -9 -9 -6 -6 -6 -6 -6 -6 -6 -5 --------- Run | Yrd Mat Min Mat Sto Rec Scr Fac Was Fac Low Low Zio Dee Pro Total 16944 | 82 1230 706 1305 1690 987 1050 2492 230 3280 362 560 1022 1289 659 Wait 1333 | . 100 15 124 297 183 7 32 68 222 6 6 118 97 58 Move 14531 | 57 1001 632 1088 1271 746 1008 2293 162 2813 346 543 885 1108 578 Hop 90 | . 7 16 6 17 6 1 6 . 24 2 2 3 . . Pick Up 86 | 4 9 1 11 6 6 12 13 . 11 2 1 2 5 3 Fast Attach 73 | 7 3 . 3 3 4 7 5 . 16 2 2 2 19 . Attach 29 | . 3 1 4 3 . 1 6 . 7 1 . 3 . . Detach 10 | . 2 . . . . . 2 . 4 . . . 2 . Swap 95 | . 11 6 10 11 3 4 18 . 25 1 . . 1 5 Drop 122 | 1 13 5 13 12 6 10 15 . 26 2 3 4 10 2 Fire 299 | 13 81 30 35 48 7 . . . 33 . 3 1 35 13 Melee 219 | . . . 11 22 6 . 102 . 62 . . 4 12 . Ram . | . . . . . . . . . . . . . . . Kick . | . . . . . . . . . . . . . . . Crush . | . . . . . . . . . . . . . . . Escape Stasis 15 | . . . . . . . . . 15 . . . . . Rewire 20 | . . . . . 20 . . . . . . . . . Trap 22 | . . . . . . . . . 22 . . . . . Miscellaneous . | . . . . . . . . . . . . . . . Route ------- -11/Scrapyard -10/Materials (discovered 5 exits: *Mat x3 / [*Min x2]) -10/Mines -9/Materials (discovered 6 exits: *Mat x3 / *Min / *Sto x2) -9/Storage (discovered 2 exits: *Mat / *Rec) -9/Recycling (discovered 2 exits: [*Fac] / *Scr) -9/Scraptown (discovered 2 exits: *Fac x2) -6/Factory (discovered 6 exits: *Fac x4 / *Low x2) -6/Waste -6/Factory (discovered 5 exits: *Fac x3 / *Low x2) -6/Lower Caves -6/Lower Caves (discovered 2 exits: *Fac / *Zio) -6/Zion (discovered 2 exits: *Dee / [*Pro]) -6/Deep Caves -5/Proximity Caves History --------- Turn | Location | Event 3 | -11/Scrapyard | Discovered new exit (range 16) 98 | -11/Scrapyard | Entered Materials 132 | -10/Materials | Discovered new exit (range 7) 276 | -10/Materials | Discovered new exit (range 8) 300 | -10/Materials | Build established: Mutant 582 | -10/Materials | Discovered new exit (range 11) 685 | -10/Materials | Discovered new exit (range 16) 698 | -10/Materials | Derelicts attacked the area 914 | -10/Materials | Discovered new exit (range 3) 1100 | -10/Materials | Entered Mines 1112 | -10/Mines | Core integrity fell below 50% 1116 | -10/Mines | Escorted by a lone wolf Derelict 1136 | -10/Mines | Learned location of Zion (-6) 1214 | -10/Mines | Discovered new exit (range 10) 1325 | -10/Mines | Core integrity fell below 20% 1375 | -10/Mines | Learned Materials terminal intel 1378 | -10/Mines | Found a Scrap Suit stashed away for nefarious purposes 1459 | -10/Mines | Entered Materials 1459 | -9/Materials | Evolved 2 slots: Propulsion x2 1460 | -9/Materials | Loaded intel: 12 terminal locations 1587 | -9/Materials | Discovered new exit (range 4) 1598 | -9/Materials | Discovered new exit (range 15) 1670 | -9/Materials | Discovered new exit (range 16) 1726 | -9/Materials | Discovered new exit (range 5) 1759 | -9/Materials | Identified exit to Mines 1759 | -9/Materials | Identified exit to Storage 1807 | -9/Materials | Identified exit to Materials 1851 | -9/Materials | Repaired Lgt. Ion Engine+ 1857 | -9/Materials | Loaded intel: 16 trap records 1859 | -9/Materials | Search patrols dispatched 1960 | -9/Materials | Build established: Sprinter 1962 | -9/Materials | Loaded intel: 2 repair station locations 1973 | -9/Materials | Learned location of 2 exits from Materials 2019 | -9/Materials | Learned Materials trap positions 2048 | -9/Materials | Entered Storage 2072 | -9/Storage | Identified exit to Recycling 2093 | -9/Storage | Met 01-MTF 2247 | -9/Storage | Learned Materials trap positions 2298 | -9/Storage | Assisted by bots powering up and referring to "LRC-V3" 2395 | -9/Storage | Loaded intel: 24 trap records 2499 | -9/Storage | Used back door to open Recycling access 2587 | -9/Storage | Repaired Imp. Flight Unit 2647 | -9/Storage | Found Prototype Protection 2647 | -9/Storage | Identified Lgt. Regenerative Plating 2888 | -9/Storage | Build established: Commander-Sprinter 2911 | -9/Storage | Entered Recycling 2911 | -9/Recycling | Accompanied by 9 allies (01-MTF) 2972 | -9/Recycling | Discovered new exit (range 16) 3113 | -9/Recycling | Lost 3 allies 3119 | -9/Recycling | Learned Materials machine intel 3225 | -9/Recycling | Learned Storage interactive machine intel 3265 | -9/Recycling | Scanned before Scraplab entrance 3314 | -9/Recycling | Discovered new exit (range 3) 3320 | -9/Recycling | Entered Scraplab 3324 | -9/Recycling | Lost 6 allies 3331 | -9/Recycling | Found Prototype Device 3331 | -9/Recycling | Identified 01-MTF's Autohacker 3351 | -9/Recycling | Learned Storage trap positions 3395 | -9/Recycling | Learned 2 Materials zone layouts 3399 | -9/Recycling | Entered Scraptown 3399 | -9/Scraptown | Accompanied by 1 ally 3399 | -9/Scraptown | System corruption cleaned by C-Scrubber 3419 | -9/Scraptown | Visited UFD Registry 3419 | -9/Scraptown | Registered with UFD as "Railpod" 3424 | -9/Scraptown | Visited The Evicted 3429 | -9/Scraptown | Visited Awakened 3431 | -9/Scraptown | Visited Cave Peace 3434 | -9/Scraptown | Visited Assassins FH 3438 | -9/Scraptown | Visited Cyclists 3440 | -9/Scraptown | Entered Cyclist Reading Room 3441 | -9/Scraptown | Learned location of Exiles (-9) 3449 | -9/Scraptown | Visited Bundlers 3468 | -9/Scraptown | Visited Symbiants 3567 | -9/Scraptown | Discovered new exit (range 13) 3594 | -9/Scraptown | Build established: Sprinter 3600 | -9/Scraptown | Visited DA-N13 Charitable Foundation 3601 | -9/Scraptown | Found DCF Scrap (31 items) 3632 | -9/Scraptown | Visited Junk Repository 3642 | -9/Scraptown | Visited Observation Area 3677 | -9/Scraptown | Visited Curators Association 3682 | -9/Scraptown | Visited Scrap Suit Storage 3686 | -9/Scraptown | Visited Derelict Rescue Squad 3689 | -9/Scraptown | Visited Chapter 10 3695 | -9/Scraptown | Visited Botcube Research 3703 | -9/Scraptown | Visited Junk Repository 3711 | -9/Scraptown | Visited Scrapoid Research Area 3737 | -9/Scraptown | Met Optimus 3737 | -9/Scraptown | Accepted into 0bPrime 3753 | -9/Scraptown | Discovered new exit (range 3) 3753 | -9/Scraptown | Entered Factory 3753 | -6/Factory | Evolved 6 slots: Propulsion x2, Utility x4 3805 | -6/Factory | Loaded intel: 8 recycling unit locations 3953 | -6/Factory | Learned location of Protoforge (-2) 3957 | -6/Factory | Identified exit to Lower Caves 4058 | -6/Factory | Build established: Hacker-Sprinter 4073 | -6/Factory | Discovered new exit (range 13) 4160 | -6/Factory | Discovered new exit (range 10) 4221 | -6/Factory | Learned location of Upper Caves (-5) 4227 | -6/Factory | Watched by a mysterious "MATRIX" hacker. 4232 | -6/Factory | Central database locked down 4345 | -6/Factory | Loaded intel: 4 garrison access locations 4391 | -6/Factory | Learned 4 Proximity Caves zone layouts 4438 | -6/Factory | Discovered new exit (range 11) 4445 | -6/Factory | Learned Extension emergency access door positions 4453 | -6/Factory | Search patrols dispatched 4511 | -6/Factory | Learned location of Upper Caves (-5) 4528 | -6/Factory | Discovered new exit (range 8) 4589 | -6/Factory | Hacking Suite fried by hacking feedback 4702 | -6/Factory | Sucked down chute 4702 | -6/Factory | Entered Waste 4703 | -6/Waste | Joined by Warlord forces that had cleared the area 4728 | -6/Waste | Discovered new exit (range 15) 4809 | -6/Waste | Entered Factory 4809 | -6/Factory | Accompanied by 20 allies 4814 | -6/Factory | Central database locked down 4822 | -6/Factory | Discovered exit to Lower Caves (range 8) 4862 | -6/Factory | Lost 3 allies 4913 | -6/Factory | Lost 5 allies 4923 | -6/Factory | Fabricated Trap Extractor (x2) 4927 | -6/Factory | Garrison activated, responded to threat 4971 | -6/Factory | Fabricated Imp. System Restoration Module (x2) 4989 | -6/Factory | Lost 9 allies 5138 | -6/Factory | Loaded intel: 8 recycling unit locations 5509 | -6/Factory | First assault squad dispatched 5612 | -6/Factory | Discovered new exit (range 5) 5613 | -6/Factory | Identified exit to Factory 6136 | -6/Factory | Core integrity fell below 50% 6146 | -6/Factory | Learned Extension trap positions 6162 | -6/Factory | Entered Lower Caves 6189 | -6/Lower Caves | Learned location of 1 exit from Factory 6219 | -6/Lower Caves | Encountered a Warlord checkpoint 6253 | -6/Lower Caves | Discovered new exit (range 5) 6253 | -6/Lower Caves | Identified exit to Lower Caves 6261 | -6/Lower Caves | Entered another Lower Caves area 6285 | -6/Lower Caves | Discovered exit to Factory (range 14) 6377 | -6/Lower Caves | Discovered new exit (range 4) 6378 | -6/Lower Caves | Identified exit to Zion 6418 | -6/Lower Caves | Entered Zion 6420 | -6/Zion | Learned location of 1 exit from Factory 6432 | -6/Zion | Discovered new exit (range 11) 6519 | -6/Zion | Learned location of Warlord (-4) 6537 | -6/Zion | Given the Hacking Drone Bay 6599 | -6/Zion | Gained Derelict followers 6622 | -6/Zion | Turned away by Imprinter 6738 | -6/Zion | Attacked by Zionites 6750 | -6/Zion | Extracted access codes from Imprinter's data core 6767 | -6/Zion | Opened final containment barrier to the Deep Caves 6770 | -6/Zion | Discovered new exit (range 5) 6771 | -6/Zion | Saw the warning signs outside the Deep Caves entrance 6771 | -6/Zion | Identified exit to Deep Caves 6771 | -6/Zion | Entered Deep Caves 6773 | -6/Deep Caves | Met 5H-AD0 6801 | -6/Deep Caves | Lost 5 parts (1p2n1u1w) 6840 | -6/Deep Caves | Z-Facility disabled 6949 | -6/Deep Caves | Core integrity fell below 20% 6953 | -6/Deep Caves | Found Prototype Protection 6953 | -6/Deep Caves | Identified Zio. Weapon Casing 6977 | -6/Deep Caves | Lost 8 parts (1p4n1u2w) 7197 | -6/Deep Caves | Discovered new exit (range 6) 7204 | -6/Deep Caves | Identified exit to Proximity Caves 7261 | -6/Deep Caves | Build established: Scavenger-Mutant 7534 | -6/Deep Caves | Spotted Golem 7901 | -6/Deep Caves | Build established: Hacker-Mutant 8417 | -6/Deep Caves | Entered Proximity Caves 8527 | -5/Proximity Caves | Learned 8 Factory zone layouts 8583 | -5/Proximity Caves | Build established: Scavenger-Mutant 8676 | -5/Proximity Caves | Learned 4 Factory zone layouts 9161 | -5/Proximity Caves | Destroyed by S-27 Virus with Autogun Last Messages --------------- 08958_ Acquired 3 matter. 08959_ Acquired 5 matter. 08964_ Acquired 3 matter. 08970_ Acquired 4 matter. 08972_ Acquired 3 matter. 08976_ Acquired 5 matter. 08978_ Acquired 2 matter. 08979_ Acquired 5 matter. 08981_ System corrupted: Matter fused (-10). 09053_ System corrupted: Substantial component data lost. 09066_ Acquired 3 matter. 09124_ Searching scrap... 09124_ Found Adv. Hacking Suite. 09124_ Found 63 Matter. 09125_ Acquired 23 matter. 09125_ Dropped Imp. System Restoration Module. 09127_ Acquired Adv. Hacking Suite. 09146_ System corrupted: Substantial component data lost. Map ----- +----------------------------------------------------+ | #????????????????????????????????????????????????? | | #????????????????????????????????????????????????? | | #????????????????????????????????????????????????? | | #????????????????????????????????????????????????? | | ?????????????????????????????????????????????????? | | ?????????????????????????????????????????????????? | | ?????????????????????????????????????????????????? | | ?????????????????????????????????????????????????? | | #????????????????????????????????????????????????? | | ##???????????????????????????????????????????????? | | %#???????????????????????????????????????????????? | | #???????????????????????????????????????????????? | | #???????????????????????????????????????????????? | | #???????????????????????????????????????????????? | | #???????????????????????????????????????????????? | | ###?????????????????????????????????????????????? | | #?????????????????????????????????????????????? | | #######???????????????????????????????????????? | | ## #???????????????????????????????????????? | | #???????????????????????????????????????? | | ####???????????????#####????????????????? | | ##?????????????? ##???????????????? | | ##### #????????????? #???????????????? | | ###???## ##??####?????## ## ###??????????? | | ???????## #?###% ##???## ???????? | | ????????## ### ! #####@ ???????? | | ?????????# ## #####??????????? | | ?????????# # #?????????????? | | ?????????# ### ss ##?????????????? | | ?????????##### ## ##?# ###;s #??????????????? | | ?????###?????###### ###??###??## s###????????????? | | ????## #??????????######????### #####????????? | | ????#""#??######???## ##??## ##???????? | | ???## #?## ##### #### #? #??##???? | | ???# #?# ## #??# #?# #???? | | #?## #?# #### ###"#????? | | ### #?# # ## "##???? | | ##?# ### " ##?## | | #??# #?# """" ###" | | #??# #?# ## " # ## | | ##??# #?## ## " # | | ###?# #??### ### """ ""### | | ### #???## #?# """" ###?# # | | ## #?### ##?# "" #???# ## # | | # #?# ##### #???# ## # | | #?## ###"" #???## ## # | | ##?# #####"#####????### # | | ##### #?## #???###??????????# ## | | ##???## ##??#### ##????????????????# #? | | #?????####??????## #?????????????????# ##? | +----------------------------------------------------+ Best States ------------- Heat Dissipation 63 Energy Generation 27 Energy Capacity 700 Matter Stores 300 Matter Capacity 300 Sight Range 22 Robot Scan Range 16 Terrain Scan Density 10 Cloak Strength 3 Armor Coverage 400 Power Shielding 33 Propulsion Shielding 90 Weapon Shielding 100 Evasion (%) 75 Offensive Hacking 22 Defensive Hacking 10 Authchip Count 1 Trap Extractor Capacity 6 Item Schematics ----------------- Trap Extractor | -9/Storage | Hacked Visual Processing Unit | -9/Recycling | Hacked Imp. Hacking Suite | -6/Factory | Hacked Imp. Plasma Cutter | -6/Factory | Hacked Imp. System Restoration Module | -6/Factory | Scanalyzed Cesium-ion Thruster | -6/Factory | Scanalyzed Reaction Control System | -6/Factory | Extracted Imp. Heavy Armor Plating | -6/Factory | Extracted Adv. Targeting Computer | -6/Factory | Extracted EM Disruption Field | -6/Factory | Extracted Scythe | -6/Factory | Extracted Adv. Visual Processing Unit | -6/Factory | Extracted Stasis Canceller | -6/Factory | Extracted Hyp. Gauss Rifle | -6/Factory | Extracted Imp. Trap Scanner | -6/Factory | Extracted Gravmag Array | -6/Factory | Extracted Spear | -6/Factory | Extracted Adv. Energy Well | -6/Factory | Scanalyzed Adv. Cryofiber Web | -6/Factory | Hacked Battle Cannon | -6/Zion | Free Slug Cannon | -6/Zion | Free Enh. Flamer | -6/Zion | Free Arc Thrower | -6/Zion | Free EM Shield | -6/Zion | Archive Imp. Transmission Jammer | -6/Zion | Archive Imp. System Shield | -6/Zion | Archive Lrn. Proton Cannon | -6/Zion | Archive Adv. Terrain Scanner | -6/Zion | Archive Imp. Arc Projector | -6/Zion | Archive Nuclear Pulse Thruster | -6/Zion | Archive Tesla Rifle | -6/Zion | Archive Neutrino Core | -6/Zion | Archive Imp. Particle Charger | -6/Zion | Archive Antimatter Reactor | -6/Zion | Archive Matter Neutralizer | -6/Zion | Archive Imp. Reaction Control System | -6/Zion | Archive Hvy. Mass Driver | -6/Zion | Archive Robot Schematics ------------------ A-02 Transporter | -6/Zion | Archive K-01 Serf | -6/Zion | Archive R-06 Scavenger | -6/Zion | Archive Fabricated ------------ Trap Extractor | x2 | -6/Factory | Authchip Imp. System Restoration Module | x2 | -6/Factory Repaired ---------- Lgt. Ion Engine | 7% | -9/Materials Imp. Flight Unit | 32% | -9/Storage Studied --------- Flight Unit | -9/Materials | Hacked Lgt. Ion Engine | -9/Materials | Hacked Autogun | -9/Materials | Hacked Nuclear Pulse Thruster | -6/Factory | Hacked Fusion Compressor | -6/Factory | Hacked Surge Thruster | -6/Factory | Hacked Alien Tech Used ----------------- None Achievements -------------- None Challenges ------------ None Game ------ Seed BarragePhysicsShielding Manual? 0 Play Time 02:37:54 Cumulative 913.2 hours Start 2026.02.13 @ 11:33:31 End 2026.02.13 @ 14:38:56 Sessions 1 Manual Loads 0 Difficulty Rogue Special Mode None Game No. 353 Rogue 353 Adventurer 0 Explorer 0 Win Type - Total 95 Types 44/6/17/9/8/1/1/3/1/5 Lore% 98 Gallery% 88 Achievement% 86 Wizard Run 0 Options --------- Layout 1 ASCII 0 Keyboard 0 Movement Numpad Keybinds 0 Fullscreen 1 Font 24/Smallcaps Map View 50x35 Zoom Use 0% Tactical HUD 1 Map Filters NONE Filters NONE Steam 1 RUN: c2edf3ee-1336-415a-8572-a6615494bfd6